Cogmind - Beta 12 @@@ ROGUE MODE // 2024.02.15 @ 20:52:42 Player: ktur Result: Destroyed by Y-45 Defender with Heavy Assault Rifle Performance ------------- Evolutions (2) 1000 Regions Visited (10) 2000 Robots Destroyed (106) 530 Value Destroyed (3360) 3360 Prototype IDs (42) 840 Alien Tech Used (0) 0 Bonus (3306) 3306 TOTAL SCORE: 11036 Bonus ------- High Alert Combat Kills 661 Follower Combat Kills 445 Entered Garrisons 400 Used RIF Installer 1500 Aligned with FarCom 300 Cogmind --------- Core Integrity 0/550 Matter 253/300 Energy 48/100 System Corruption 10% Temperature Cool (9) Movement Treading (160) Location -8/Storage Parts ------- > --- POWER (1) -------- (None) > --- PROPULSION (4) --- Light Treads Light Treads Light Treads Carbon-fiber Leg > --- UTILITY (4) ------ High-capacity Storage Unit Heavy Armor Plating Relay Coupler [Hunter] (11) > --- WEAPON (2) ------- Improved Datajack Katana (fused) > --- INVENTORY (20) --- Improved Flight Unit Improved VTOL Module Field Propulsion Drive Field Propulsion Drive Improved Heat Sink Medium Storage Unit Experimental Sensor Array Modified TNC Advanced Shield Generator Hacking Suite Hacking Suite Relay Coupler [NC] (37) Relay Coupler [NC] (36) Relay Coupler [Sentry] (31) Improved Trap Extractor (4/6 Shock) PSU Rigger Missile Launcher Missile Launcher Remote Datajack Longsword +1 Peak State ------------ > --- POWER ------------ Light Angular Momentum Engine > --- PROPULSION ------- Light Treads Light Treads Light Treads Armored Treads > --- UTILITY ---------- High-capacity Storage Unit Improved Kinecellerator Layered Heavy Armor Plating > --- WEAPON ----------- Minigun KE Penetrator > --- INVENTORY -------- Light Nuclear Core Cesium-ion Thruster Cesium-ion Thruster Field Propulsion Drive Field Propulsion Drive High-capacity Matter Pod Experimental Sensor Array Modified TNC Advanced ECM Suite Advanced Shield Generator Hacking Suite Hacking Suite Hacking Suite Improved Trap Extractor PSU Rigger Plasma Cannon Grenade Launcher Datajack Longsword +1 [Rating: 47] Favorites ----------- Power Light Nuclear Core Engine Light Angular Momentum Engine Power Core Light Nuclear Core Propulsion Light Treads Treads Light Treads Leg Improved Aluminum Leg Flight Unit Improved VTOL Module Utility High-capacity Storage Unit Device Improved Kinecellerator Storage High-capacity Storage Unit Hackware Relay Coupler [Hunter] Protection Layered Heavy Armor Plating Weapon Light Cannon Energy Gun Heavy EM Shotgun Energy Cannon Plasma Cannon Ballistic Gun Minigun Ballistic Cannon Light Cannon Launcher Grenade Launcher Special Weapon Remote Datajack Slashing Weapon Katana Special Melee Weapon Datajack Build | -11 -10 -10 -10 -9 -8 -8 -8 -8 -8 -8 ------- Run | Jun Mat Min Exi Min Mat Gar Mat Gar Mat Sto Slots Evolved 4 | . . . . . 4 . . . . . Power . | . . . . . . . . . . . Propulsion 2 | . . . . . 2 . . . . . Utility 2 | . . . . . 2 . . . . . Weapon . | . . . . . . . . . . . Parts Attached 104 | 7 14 3 2 3 15 19 2 16 20 3 Power 15 | 1 3 . . . 1 3 . 3 4 . Engine 4 | 1 1 . . . 1 . . 1 . . Core 11 | . 2 . . . . 3 . 2 4 . Reactor . | . . . . . . . . . . . Propulsion 28 | 2 2 . . . 4 4 . 7 7 2 Treads 16 | 2 2 . . . 4 4 . . 4 . Leg 11 | . . . . . . . . 7 3 1 Wheel . | . . . . . . . . . . . Hover . | . . . . . . . . . . . Flight 1 | . . . . . . . . . . 1 Utility 30 | 2 4 1 1 2 5 6 1 2 6 . Device 9 | 1 . . . 1 2 4 . 1 . . Storage 6 | 1 2 1 1 . . . . 1 . . Processor . | . . . . . . . . . . . Hackware 3 | . . . . . . . . . 3 . Protection 12 | . 2 . . 1 3 2 1 . 3 . Artifact . | . . . . . . . . . . . Weapon 31 | 2 5 2 1 1 5 6 1 4 3 1 Energy Gun 5 | 1 . . . . 3 1 . . . . Energy Cannon 1 | . . . . . . 1 . . . . Ballistic Gun 7 | 1 1 . . . . 4 1 . . . Ballistic Cannon 6 | . 3 1 . 1 1 . . . . . Launcher 4 | . 1 1 . . 1 . . 1 . . Special Weapon 2 | . . . . . . . . . 2 . Impact Weapon . | . . . . . . . . . . . Slashing Weapon 4 | . . . . . . . . 3 1 . Piercing Weapon . | . . . . . . . . . . . Special Melee Weapon 2 | . . . 1 . . . . . . 1 Unidentified Prototypes 2 | . . . . . 1 . . . . 1 Parts Lost 24 | . 1 . . . 6 . . 8 9 . Power 3 | . . . . . . . . 1 2 . Propulsion 10 | . . . . . 1 . . 4 5 . Utility 6 | . 1 . . . 3 . . 1 1 . Weapon 5 | . . . . . 2 . . 2 1 . Highest Loss Streak 3 | . 1 . . . 3 . . 3 3 . To Critical Strikes . | . . . . . . . . . . . Average Slot Usage (%) 90 | . 94 100 100 100 75 88 86 85 82 81 Engine 2 | . 6 . . . 7 4 . . . . Core 7 | . 7 14 14 14 1 4 9 7 6 . Treads 23 | . 27 28 28 28 29 36 36 6 13 27 Leg 7 | . . . . . . . . 26 16 8 Device 3 | . 5 . . . . 8 9 3 . . Storage 13 | . 15 14 14 14 9 9 9 16 12 9 Hackware 1 | . . . . . . . . . 11 9 Protection 8 | . 3 14 14 14 9 9 5 7 5 9 Energy Gun 2 | . 5 . . . 14 4 . . . . Ballistic Gun 5 | . 10 . . . . 11 9 3 . . Ballistic Cannon 7 | . 12 28 15 24 3 . . . . . Slashing Weapon 4 | . . . . . . . . 13 11 9 Special Melee Weapon 1 | . . . 12 3 . . . . . . Naked Turns . | . . . . . . . . . . . Heaviest Build 82 | 12 28 38 56 58 67 82 80 76 65 60 Greatest Support 86 | 40 40 40 40 40 86 80 80 80 60 60 Greatest Overweight (x) 5 | . . . 1 1 1 1 . 5 2 . Average Overweight (x) . | . . . . 1 . . . . . . Largest Inventory Capacity 20 | 8 10 15 20 20 20 20 20 20 20 20 Average Capacity 16 | 7 9 12 18 20 20 20 20 20 20 20 Most Carried 20 | 5 10 14 19 20 20 20 20 20 20 20 Average Carried 16 | 2 9 11 16 19 19 19 20 19 19 19 Final Capacity 20 | 8 10 15 20 20 20 20 20 20 20 20 Final Carried 20 | 5 10 14 19 20 20 20 20 20 20 20 Class Distribution -------------------- 50% | Mutant 35% | Bothacker-Mutant 13% | Scavenger-Mutant Dominant Class ---------------- Mutant | -10/Materials Mutant | -10/Mines Mutant | -10/Exiles Mutant | -9/Mines Mutant | -8/Materials Scavenger-Mutant | -8/Garrison Bothacker-Mutant | -8/Materials Bothacker-Mutant | -8/Garrison Bothacker-Mutant | -8/Materials Bothacker-Mutant | -8/Storage Resources | -11 -10 -10 -10 -9 -8 -8 -8 -8 -8 -8 ----------- Run | Jun Mat Min Exi Min Mat Gar Mat Gar Mat Sto Matter Collected 2694 | 266 614 173 20 . 279 605 25 521 191 . Remotely . | . . . . . . . . . . . Salvage Created 3894 | 57 696 28 . . 829 825 . 1003 456 . Parts 221 | 11 45 5 . . 55 46 . 40 19 . Haulers Intercepted 5 | . 2 . . . 1 1 . . 1 . Recyclers Shooed 1 | . . . . . 1 . . . . . Parts Field Recycled . | . . . . . . . . . . . Retrieved Matter . | . . . . . . . . . . . Parts Self-Destructed . | . . . . . . . . . . . Prevented . | . . . . . . . . . . . Kills | -11 -10 -10 -10 -9 -8 -8 -8 -8 -8 -8 ------- Run | Jun Mat Min Exi Min Mat Gar Mat Gar Mat Sto Combat Hostiles Destroyed 86 | . 20 4 . . 16 18 . 23 5 . Melee 15 | . . . . . . . . 10 5 . Guns 41 | . 7 . . . 8 18 . 8 . . Cannons 15 | . 10 4 . . 1 . . . . . AOE 13 | . 3 . . . 5 . . 5 . . Classes Destroyed 16 | 1 7 2 . . 3 1 . 1 1 . Worker 5 | . . 1 . . 4 . . . . . Builder 3 | . 1 . . . . . . . 2 . Tunneler 3 | 3 . . . . . . . . . . Hauler 5 | . 2 . . . 1 1 . . 1 . Recycler 1 | . . . . . . . . . 1 . Mechanic 1 | . 1 . . . . . . . . . Operator 3 | . 3 . . . . . . . . . Watcher 2 | . 2 . . . . . . . . . Swarmer 18 | . 6 1 . . 4 7 . . . . Grunt 44 | . 14 . . . 6 5 . 17 2 . Brawler 1 | . . . . . 1 . . . . . Duelist 4 | . . . . . . . . 4 . . Sentry 10 | . . . . . 4 3 . 1 2 . Hunter 2 | . . . . . 1 . . . 1 . Programmer 4 | . . . . . . 3 . 1 . . Assembled 3 | . . 3 . . . . . . . . Best Kill Streak 7 | 2 7 3 . . 5 5 . 5 1 . Combat Bots Only 6 | . 6 2 . . 5 5 . 5 1 . Max Kills in Single Turn 4 | 1 4 1 . . 2 2 . 1 1 . Gunslinging . | . . . . . . . . . . . Exploded 3 | . 3 . . . 2 . . 1 . . Melee 1 | . . . . . . . . 1 1 . Uniques/NPCs Destroyed . | . . . . . . . . . . . Combat | -11 -10 -10 -10 -9 -8 -8 -8 -8 -8 -8 -------- Run | Jun Mat Min Exi Min Mat Gar Mat Gar Mat Sto Damage Taken 5748 | . 645 110 . . 1023 976 20 1872 1072 30 Core 621 | . 67 . . . 140 56 . 166 176 16 Absorbed by Shields 220 | . . . . . . . 8 212 . . Regen/Repaired (Parts) 744 | . 387 . . . . . 357 . . . Core Remaining (%) 86 | 100 . . . 73 . . . . . . Volleys Fired 282 | 4 98 13 . . 39 74 8 44 2 . Largest 2 | 2 2 2 . . 2 2 1 2 1 . Hottest 100 | 60 70 70 . . 100 100 80 50 5 . Shots Fired 432 | 8 140 24 . . 76 115 8 59 2 . Gun 305 | 8 72 . . . 63 113 . 49 . . Cannon 109 | . 67 22 . . 10 2 8 . . . Launcher 16 | . 1 2 . . 3 . . 10 . . Special 2 | . . . . . . . . . 2 . Kinetic 294 | 4 114 22 . . 10 95 . 49 . . Thermal 47 | 4 25 . . . . 10 8 . . . Explosive 16 | . 1 2 . . 3 . . 10 . . Electromagnetic 73 | . . . . . 63 10 . . . . Robot Hit Streak 14 | 2 14 3 . . 10 10 4 13 4 . Robot Miss Streak 5 | 2 3 4 . . 2 5 1 2 . . Penetration Max 1 | . . . . . . 1 . . . . Secondary Targets 4 | . 1 . . . . 3 . . . . Max Gunslinging Chain 1 | . 1 . . . . 1 . . . . Shots Hit Robots 360 | 3 99 10 4 . 61 58 5 76 44 . Core Hits 174 | 3 40 6 . . 39 34 . 44 8 . Critical Kills 2 | . . . . . . 2 . . . . Critical Parts Destroyed 1 | . . . . . . 1 . . . . Critical Strikes 18 | . 3 . . . 1 3 . 3 8 . Destroy 3 | . . . . . . 3 . . . . Blast 4 | . 3 . . . 1 . . . . . Sever 11 | . . . . . . . . 3 8 . Melee Attacks 131 | . . . 4 . . . . 63 59 5 Impact . | . . . . . . . . . . . Slashing 127 | . . . . . . . . 63 59 5 Piercing . | . . . . . . . . . . . Sneak Attacks 19 | . . . 4 . . . . 8 7 . Combat Hostiles 2 | . . . . . . . . 2 . . Follow-up Attacks 5 | . . . . . . . . 3 2 . Damage Inflicted 9026 | 58 1706 265 . . 1437 1392 177 2453 1538 . Guns 3679 | 58 657 . . . 936 1351 . 677 . . Cannons 1256 | . 864 188 . . 80 . 124 . . . Explosions 1392 | . 158 54 . . 421 35 . 724 . . Melee 2581 | . . . . . . . . 1043 1538 . Ramming 118 | . 27 23 . . . 6 53 9 . . Kinetic 3448 | 14 1322 188 . . 80 1167 . 677 . . Thermal 587 | 44 199 . . . 132 88 124 . . . Explosive 1225 | . 158 54 . . 289 . . 724 . . Electromagnetic 1067 | . . . . . 936 131 . . . . Impact . | . . . . . . . . . . . Slashing 2581 | . . . . . . . . 1043 1538 . Piercing . | . . . . . . . . . . . Highest Corruption 10 | . . . . . 3 9 9 10 10 10 Average Corruption 7 | . . . . . 3 3 9 9 10 10 Corruption Purged . | . . . . . . . . . . . Corruption Blocked . | . . . . . . . . . . . Effects 144 | . . . . . 7 30 6 63 33 5 Message Errors 31 | . . . . . 2 5 2 14 8 . Matter Fused 34 | . . . . . 2 9 1 14 6 2 Heat Flow Errors 18 | . . . . . 1 3 . 9 5 . Energy Discharges 23 | . . . . . . 5 2 10 5 1 Parts Rejected 3 | . . . . . . . . . 3 . Parts Fused 4 | . . . . . . 1 . 3 . . Data Loss (minor) 20 | . . . . . 1 5 1 9 3 1 Data Loss (major) 4 | . . . . . . . . 2 1 1 Misfires 3 | . . . . . 1 1 . 1 . . Alerts 1 | . . . . . . . . 1 . . Misdirections 2 | . . . . . . . . . 2 . Weapon Failures 1 | . . . . . . 1 . . . . Overload Shots . | . . . . . . . . . . . Overflow Damage 226 | . 20 . . . 56 . 9 19 122 . Projectiles 27 | . 20 . . . 7 . . . . . Explosions 53 | . . . . . 49 . . 4 . . Melee 146 | . . . . . . . 9 15 122 . Knockbacks 18 | . 11 4 . . 3 . . . . . Impact 1 | . 1 . . . . . . . . . Kinetic 16 | . 10 4 . . 2 . . . . . Secondary 1 | . . . . . 1 . . . . . Self-Inflicted Damage 109 | . . . . . 80 . . 29 . . Shots 5 | . . . . . 3 . . 2 . . Rammed 24 | . 11 7 . 1 1 1 2 1 . . Targets Rammed 24 | . 11 7 . 1 1 1 2 1 . . Kicked . | . . . . . . . . . . . Crushed . | . . . . . . . . . . . Highest Temperature 408 | . 81 144 . . 408 326 156 332 232 . Average Temperature 101 | . 26 58 . . 125 127 56 115 98 . Received Heat Transfer 1942 | . 294 20 . . 252 219 6 818 324 9 Effects 14 | . . . . . 2 9 . 3 . . Shutdowns 2 | . . . . . 1 1 . . . . Energy Bleed 2 | . . . . . . 2 . . . . Interference 7 | . . . . . . 5 . 2 . . Damage (minor) 3 | . . . . . 1 1 . 1 . . Siege Activations . | . . . . . . . . . . . Robots Corrupted 3 | . . . . . 2 1 . . . . Combat Hostiles 2 | . . . . . 2 . . . . . Parts Fried 7 | . . . . . 3 4 . . . . Impact Corruptions 2 | . . . . . 1 . 1 . . . Robots Melted . | . . . . . . . . . . . Combat Hostiles . | . . . . . . . . . . . Parts Melted 1 | . . . . . . 1 . . . . Heat Transferred 1161 | 100 450 . . . 200 161 250 . . . Parts Sabotaged . | . . . . . . . . . . . Parts Stolen . | . . . . . . . . . . . Parts Stripped . | . . . . . . . . . . . Power Chain Reactions 3 | . . . . . 2 1 . . . . Missiles Intercepted . | . . . . . . . . . . . Alert | -11 -10 -10 -10 -9 -8 -8 -8 -8 -8 -8 ------- Run | Jun Mat Min Exi Min Mat Gar Mat Gar Mat Sto Peak Influence 1311 | 15 452 114 . . 349 1009 514 1311 841 134 Initial 638 | . 9 96 . . . 229 491 334 638 115 Average 409 | 4 208 50 . . 186 570 503 822 528 126 Maximum Alert Level 4 | . 2 . . . 1 3 2 4 3 . Low Security (%) 33 | 100 47 100 . 100 54 . . . . 100 Level 1 28 | . 49 . . . 45 43 . 8 40 . Level 2 14 | . 2 . . . . 14 100 29 24 . Level 3 16 | . . . . . . 41 . 27 34 . Level 4 7 | . . . . . . . . 33 . . Level 5 . | . . . . . . . . . . . High Security . | . . . . . . . . . . . Max Security . | . . . . . . . . . . . Squads Dispatched 10 | . 6 . . . 3 . 1 . . . Investigation 3 | . 3 . . . . . . . . . Extermination . | . . . . . . . . . . . Reinforcement 4 | . 3 . . . . . 1 . . . Assault . | . . . . . . . . . . . Garrison 3 | . . . . . 3 . . . . . Intercept . | . . . . . . . . . . . Searches Triggered . | . . . . . . . . . . . Construction Impeded . | . . . . . . . . . . . Haulers Reinforced . | . . . . . . . . . . . Active Scanning Responses . | . . . . . . . . . . . Cargo Convoy Interrupts . | . . . . . . . . . . . Stealth | -11 -10 -10 -10 -9 -8 -8 -8 -8 -8 -8 --------- Run | Jun Mat Min Exi Min Mat Gar Mat Gar Mat Sto Distress Signals 8 | . 4 . . . 1 . 1 . 2 . Communications Jammed . | . . . . . . . . . . . Distress Signals . | . . . . . . . . . . . Times Spotted 150 | . 43 5 . . 24 22 2 31 22 1 Peak Tracking Total 7 | . 5 2 . . 7 4 3 5 6 . Tactical Retreats 16 | . 1 . . . 2 3 . 8 2 . Traps | -11 -10 -10 -10 -9 -8 -8 -8 -8 -8 -8 ------- Run | Jun Mat Min Exi Min Mat Gar Mat Gar Mat Sto Traps Triggered 10 | . 2 . . . . 2 . 6 . . Indirectly . | . . . . . . . . . . . Trap Hack Attempts . | . . . . . . . . . . . Triggered . | . . . . . . . . . . . Disarmed . | . . . . . . . . . . . Reprogrammed . | . . . . . . . . . . . Reused . | . . . . . . . . . . . Traps Extracted . | . . . . . . . . . . . Installed . | . . . . . . . . . . . Triggered . | . . . . . . . . . . . Most Traps Carried 4 | . . 4 4 4 4 4 4 4 4 4 Machines | -11 -10 -10 -10 -9 -8 -8 -8 -8 -8 -8 ---------- Run | Jun Mat Min Exi Min Mat Gar Mat Gar Mat Sto Machines Disabled 10 | . 5 . . . 1 1 . 1 1 1 Max in Single Turn 1 | . 1 . . . 1 1 . 1 . 1 Machines Repaired . | . . . . . . . . . . . Machines Sabotaged . | . . . . . . . . . . . Overloaded Fab Kills . | . . . . . . . . . . . Hacking | -11 -10 -10 -10 -9 -8 -8 -8 -8 -8 -8 --------- Run | Jun Mat Min Exi Min Mat Gar Mat Gar Mat Sto Machines Accessed 21 | . 5 . 2 1 2 2 2 3 3 1 Terminals 13 | . 3 . . . 1 2 . 3 3 1 Fabricators . | . . . . . . . . . . . Repair Stations 2 | . 1 . . . . . 1 . . . Recycling Units 1 | . 1 . . . . . . . . . Scanalyzers . | . . . . . . . . . . . Garrison Access 2 | . . . . . 1 . 1 . . . Total Hacks 50 | . 21 . 2 1 5 4 4 6 6 1 Successful 30 | . 16 . 2 1 2 1 3 1 3 1 Failed 20 | . 5 . . . 3 3 1 5 3 . Catastrophic 2 | . . . . . . 1 . 1 . . Database Lockouts . | . . . . . . . . . . . Manual 15 | . 10 . 1 . 4 . . . . . Terminals 31 | . 10 . . . 4 4 . 6 6 1 Fabricators . | . . . . . . . . . . . Repair Stations 13 | . 10 . . . . . 3 . . . Recycling Units 1 | . 1 . . . . . . . . . Scanalyzers . | . . . . . . . . . . . Garrison Access 2 | . . . . . 1 . 1 . . . Terminal Hacks 13 | . 3 . 2 1 1 1 . 1 3 1 Record 2 | . 1 . 1 . . . . . . . Robot Analysis 2 | . 2 . . . . . . . . . Prototype ID Bank 1 | . . . . . . . . . 1 . Open Door 3 | . . . . 1 . . . 1 . 1 Unreport Threat 2 | . . . . . . . . . 2 . Hauler Manifests 1 | . . . . . 1 . . . . . Garrison Registry 1 | . . . . . . 1 . . . . EX-Prototype ID Bank 1 | . . . 1 . . . . . . . Fabricator Hacks . | . . . . . . . . . . . Repair Station Hacks 12 | . 10 . . . . . 2 . . . Scan Component 6 | . 5 . . . . . 1 . . . Repair 6 | . 5 . . . . . 1 . . . Recycling Unit Hacks . | . . . . . . . . . . . Scanalyzer . | . . . . . . . . . . . Garrison Access Hacks 2 | . . . . . 1 . 1 . . . Unlock Access 2 | . . . . . 1 . 1 . . . Unauthorized Hacks 3 | . 3 . . . . . . . . . Terminals 2 | . 2 . . . . . . . . . Botnet 1 | . 1 . . . . . . . . . Operators 1 | . 1 . . . . . . . . . Fabricators . | . . . . . . . . . . . Repair Stations . | . . . . . . . . . . . Recycling Units 1 | . 1 . . . . . . . . . Tunnel 1 | . 1 . . . . . . . . . Scanalyzers . | . . . . . . . . . . . Garrison Access . | . . . . . . . . . . . Data Cores Recovered . | . . . . . . . . . . . Used . | . . . . . . . . . . . Hacking Detections 14 | . 4 . . . . 2 1 3 3 1 Full Trace Events 1 | . . . . . . 1 . . . . Feedback Events . | . . . . . . . . . . . Feedback Blocked . | . . . . . . . . . . . Robot Schematics Acquired . | . . . . . . . . . . . Robots Built . | . . . . . . . . . . . Authchips . | . . . . . . . . . . . Time . | . . . . . . . . . . . Total Robot Build Rating . | . . . . . . . . . . . Part Schematics Acquired . | . . . . . . . . . . . Parts Built . | . . . . . . . . . . . Authchips . | . . . . . . . . . . . Time . | . . . . . . . . . . . Total Part Build Rating . | . . . . . . . . . . . Parts Repaired 6 | . 5 . . . . . 1 . . . Time 198 | . 142 . . . . . 56 . . . Parts Recycled . | . . . . . . . . . . . Recycled Matter . | . . . . . . . . . . . Retrieved Matter . | . . . . . . . . . . . Retrieved Components . | . . . . . . . . . . . Parts Scanalyzed . | . . . . . . . . . . . Part Schematics Acquired . | . . . . . . . . . . . Parts Damaged . | . . . . . . . . . . . Bothacking | -11 -10 -10 -10 -9 -8 -8 -8 -8 -8 -8 ------------ Run | Jun Mat Min Exi Min Mat Gar Mat Gar Mat Sto Used RIF Installer 3 | . . . . . . 2 . 1 . . Command Fork 1 | . . . . . . 1 . . . . Zone Cloak 1 | . . . . . . . . 1 . . Robots Hacked 6 | . . . 4 . . . . . 2 . Non-combat 3 | . . . 3 . . . . . . . Combat 3 | . . . 1 . . . . . 2 . Robot Hacks Applied 6 | . . . 4 . . . . . 2 . parse_system 4 | . . . 4 . . . . . . . overwrite_iff 1 | . . . . . . . . . 1 . formatsys_high 1 | . . . . . . . . . 1 . Relay Couplers Released 3 | . . . . . . . . 3 . . Programmers 3 | . . . . . . . . 3 . . Attached 2 | . . . . . . . . . 2 . Fabnet Peak Effective % . | . . . . . . . . . . . Robots Rewired 3 | . . . . . . . . 3 . . Allies Hacked . | . . . . . . . . . . . Hacks Repelled . | . . . . . . . . . . . Allies | -11 -10 -10 -10 -9 -8 -8 -8 -8 -8 -8 -------- Run | Jun Mat Min Exi Min Mat Gar Mat Gar Mat Sto Total Allies 7 | . . . . . . . . 5 2 . Largest Group 3 | . . . . . . . . 3 3 . Highest-Rated Group 72 | . . . . . . . . 72 72 . Highest-Rated Ally 39 | . . . . . . . . 39 29 . Total Orders . | . . . . . . . . . . . Ally Attacks 76 | . . . . . . . . 54 22 . Total Damage 1314 | . . . . . . . . 769 545 . Kills 15 | . . . . . . . . 8 7 . Allies Corrupted . | . . . . . . . . . . . Allies Melted . | . . . . . . . . . . . Intel | -11 -10 -10 -10 -9 -8 -8 -8 -8 -8 -8 ------- Run | Jun Mat Min Exi Min Mat Gar Mat Gar Mat Sto Robot Analysis Total 2 | . 2 . . . . . . . . . Derelict Logs Recovered 2 | . . 2 . . . . . . . . Drone Launches . | . . . . . . . . . . . Drone Recoveries . | . . . . . . . . . . . Exploration | -11 -10 -10 -10 -9 -8 -8 -8 -8 -8 -8 ------------- Run | Jun Mat Min Exi Min Mat Gar Mat Gar Mat Sto Turns Passed 9104 | 116 2073 948 750 220 607 1305 209 1802 899 175 Spaces Moved 4128 | 61 1007 551 352 86 231 587 101 721 335 96 Core 7 | 7 . . . . . . . . . . Treads 3436 | 54 1007 551 352 86 231 587 101 162 209 96 Legs 685 | . . . . . . . . 559 126 . Wheels . | . . . . . . . . . . . Hover . | . . . . . . . . . . . Flight . | . . . . . . . . . . . Fastest Speed 50 | 50 160 160 160 240 160 162 162 162 160 160 Average Speed 180 | 147 160 160 209 240 192 183 162 192 203 160 Slowest Speed 470 | 160 160 160 240 240 243 242 162 470 320 160 Overloaded Moves . | . . . . . . . . . . . Propulsion Burnouts . | . . . . . . . . . . . Robots Hopped . | . . . . . . . . . . . Cave-ins Triggered 1 | . . . . . 1 . . . . . Exploration Rate (%) 46 | 5 96 98 70 31 24 63 12 69 29 11 Regions Visited 10 Branch Regions 4 Pre-discovered Areas 3 | . 1 1 1 . . . . . . . Known Exits Taken 2 | . . . . . 1 . 1 . . . Unknown Exits Taken 6 | 1 1 1 1 1 . . . . 1 . Scrap Searched 1 | . . 1 . . . . . . . . Spaces Dug 17 | . . . . . . . 1 4 8 4 Terrain Destroyed 80 | . 8 13 . . 28 6 3 10 8 4 Melee 16 | . . . . . . . . 4 8 4 Projectile 8 | . . . . . . 5 3 . . . AOE 56 | . 8 13 . . 28 1 . 6 . . Terrain Rammed . | . . . . . . . . . . . Walls Destroyed . | . . . . . . . . . . . Machines Disabled . | . . . . . . . . . . . Actions | -11 -10 -10 -10 -9 -8 -8 -8 -8 -8 -8 --------- Run | Jun Mat Min Exi Min Mat Gar Mat Gar Mat Sto Total 5205 | 76 1326 590 364 100 315 726 136 999 462 111 Wait 326 | . 168 5 . 3 14 3 22 70 39 2 Move 4119 | 60 1006 550 351 85 231 585 101 720 334 96 Hop . | . . . . . . . . . . . Pick Up 63 | 5 14 7 6 4 6 15 . 1 4 1 Fast Attach 61 | 7 8 . . . 9 10 2 11 12 2 Attach 12 | . 1 . . . 3 5 . 1 2 . Detach 3 | . 1 . . . . 1 . . . 1 Swap 32 | . 5 3 2 3 4 4 . 4 6 1 Drop 75 | . 14 4 1 4 8 28 1 6 6 3 Fire 282 | 4 98 13 . . 39 74 8 44 2 . Melee 121 | . . . 4 . . . . 55 57 5 Ram . | . . . . . . . . . . . Kick . | . . . . . . . . . . . Crush 24 | . 11 7 . 1 1 1 2 1 . . Escape Stasis 14 | . . . . . . . . 14 . . Rewire 73 | . . 1 . . . . . 72 . . Trap . | . . . . . . . . . . . Miscellaneous . | . . . . . . . . . . . Route ------- -11/Junkyard -10/Materials (discovered 5 exits: [*Mat x3] / [*Min x2]) -10/Mines (discovered 3 exits: [*Mat x2] / *Exi) -10/Exiles -9/Mines -8/Materials -8/Garrison (discovered 3 exits: *Mat x3) -8/Materials (discovered 2 exits: *Sto / Gar) -8/Garrison (discovered 4 exits: [*Fac x3] / *Mat) -8/Materials -8/Storage History --------- Turn | Location | Event 3 | -11/Junkyard | Discovered new exit (range 16) 117 | -11/Junkyard | Entered Materials 312 | -10/Materials | Build established: Mutant 641 | -10/Materials | Discovered new exit (range 12) 1237 | -10/Materials | Discovered new exit (range 6) 1419 | -10/Materials | Discovered new exit (range 10) 1605 | -10/Materials | Discovered new exit (range 5) 1723 | -10/Materials | Discovered new exit (range 3) 1979 | -10/Materials | Repaired Lgt. Treads 2007 | -10/Materials | Repaired Lgt. Cannon 2034 | -10/Materials | Repaired Assault Rifle 2061 | -10/Materials | Repaired Lgt. Treads 2101 | -10/Materials | Repaired Lgt. Nuclear Core 2190 | -10/Materials | Entered Mines 2202 | -10/Mines | Learned location of Zion (-6) 2219 | -10/Mines | Joined a pair of Derelicts in attacking an 0b10 outpost 2350 | -10/Mines | Assembled infested the area 2445 | -10/Mines | Discovered new exit (range 12) 2537 | -10/Mines | Found a damaged Exp. Sensor Array with a note attached 2565 | -10/Mines | Found Prototype Device 2634 | -10/Mines | Found a hidden stash of uninstalled traps 2846 | -10/Mines | Learned 2 Materials zone layouts 3096 | -10/Mines | Discovered new exit (range 14) 3131 | -10/Mines | Deemed a non-threat by the Exiles lab entrance 3131 | -10/Mines | Discovered new exit (range 5) 3138 | -10/Mines | Entered Exiles 3177 | -10/Exiles | Met 8R-AWN 3209 | -10/Exiles | Met EX-HEX 3286 | -10/Exiles | Met EX-DEC 3490 | -10/Exiles | Met EX-BIN 3518 | -10/Exiles | Aligned with FarCom system 3521 | -10/Exiles | Given EX-Vault access code 3581 | -10/Exiles | Opened EX-Vault 3595 | -10/Exiles | Found Modified TNC 3601 | -10/Exiles | Found PSU Rigger 3609 | -10/Exiles | Found Longsword +1 3660 | -10/Exiles | Warned to stay clear of 0b10 Research branches 3868 | -10/Exiles | Discovered new exit (range 10) 3888 | -10/Exiles | Stole three prototypes: Modified TNC, PSU Rigger, Longsword +1 3888 | -10/Exiles | Entered Mines 3937 | -9/Mines | Met a Derelict who couldn't figure out how to use a Trap Extractor 3976 | -9/Mines | Met a Derelict bent on vengeance 4075 | -9/Mines | Discovered new exit (range 6) 4108 | -9/Mines | Entered Materials 4108 | -8/Materials | Evolved 4 slots: Propulsion x2, Utility x2 4195 | -8/Materials | Crushed by falling debris 4515 | -8/Materials | Garrison activated, responded to threat 4658 | -8/Materials | Lost 3 parts (2u1w) 4715 | -8/Materials | Identified exit to Garrison 4715 | -8/Materials | Entered Garrison 4715 | -8/Garrison | Warlord forces raided the area 4738 | -8/Garrison | Triggered checkpoint 4747 | -8/Garrison | Warlord forces retreated 4754 | -8/Garrison | Triggered checkpoint 4850 | -8/Garrison | Triggered checkpoint 4930 | -8/Garrison | Build established: Scavenger-Mutant 5055 | -8/Garrison | Discovered new exit (range 11) 5272 | -8/Garrison | Triggered checkpoint 5292 | -8/Garrison | Triggered checkpoint 5350 | -8/Garrison | Discovered new exit (range 55) 5350 | -8/Garrison | Discovered new exit (range 58) 5350 | -8/Garrison | Discovered new exit (range 10) 5538 | -8/Garrison | Installed Relay Interface Framework 5592 | -8/Garrison | Triggered checkpoint 5638 | -8/Garrison | Expanded RIF knowledge: Command Fork 5926 | -8/Garrison | Triggered checkpoint 6020 | -8/Garrison | Entered Materials 6020 | -8/Materials | Discovered new exit (range 8) 6085 | -8/Materials | Repaired Lyr. Heavy Armor Plating? 6197 | -8/Materials | Build established: Bothacker-Mutant 6229 | -8/Materials | Identified exit to Garrison 6229 | -8/Materials | Entered Garrison 6304 | -8/Garrison | Triggered checkpoint 6453 | -8/Garrison | Discovered new exit (range 10) 6488 | -8/Garrison | Triggered checkpoint 6547 | -8/Garrison | Lost 3 parts (2n1w) 6592 | -8/Garrison | Triggered checkpoint 6850 | -8/Garrison | System corruption reached 10% 6856 | -8/Garrison | Core integrity fell below 50% 6918 | -8/Garrison | Triggered checkpoint 6948 | -8/Garrison | Triggered checkpoint 7102 | -8/Garrison | Triggered checkpoint 7111 | -8/Garrison | Discovered new exit (range 10) 7180 | -8/Garrison | Triggered checkpoint 7236 | -8/Garrison | Rescued a captive Derelict 7240 | -8/Garrison | Rescued a captive Derelict 7414 | -8/Garrison | Discovered new exit (range 5) 7528 | -8/Garrison | Triggered checkpoint 7600 | -8/Garrison | Triggered checkpoint 7671 | -8/Garrison | Discovered new exit (range 10) 7698 | -8/Garrison | Expanded RIF knowledge: Zone Cloak 8031 | -8/Garrison | Entered Materials 8031 | -8/Materials | Accompanied by 3 allies 8109 | -8/Materials | Discovered new exit (range 16) 8174 | -8/Materials | Lost 3 parts (1p2n) 8334 | -8/Materials | Core integrity fell below 20% 8930 | -8/Materials | Entered Storage 9105 | -8/Storage | Destroyed by Y-45 Defender with Heavy Assault Rifle Last Messages --------------- GOAL=ESCAPE 08930_ Receiving FarCom transmissions... 08936_ System corrupted: Component data lost. 08948_ Connecting with Door Terminal... 08948_ Current location identified: Storage >>Open(Door) Sealed Heavy Doors opened. 08953_ System corrupted: Substantial component data lost. 08962_ T-07 Excavator is excavating. 08982_ System corrupted: Matter fused (-9). 08993_ Storage Shell breached. 08998_ Dropped Carbon-fiber Leg. 08999_ Acquired Prototype Flight Unit. 08999_ Identified Imp. VTOL Module. 09000_ Dropped Cesium-ion Thruster. 09003_ Acquired Carbon-fiber Leg. 09011_ Acquired Prototype Flight Unit. 09027_ System corrupted: Matter fused (-8). 09057_ U-05 Engineer builds a Wall. 09098_ System corrupted: Energy discharge (-32). Map ----- +----------------------------------------------------+ | ???????# #????????????????????????????????? | | ???????# #????????????????????????????????? | | ???????# #????????????????????????????????? | | ???????# #????????????????????????????????? | | ???????# #????????????????????????????????? | | ???????# #????????????????????????????????? | | ??????## ##???????????????????????????????? | | ??????## ^^##???????????????????????????????? | | ???????# #????????????????????????????????? | | ???????# ##???????????????????????????????? | | ???????# "#???????????????????????????????? | | ???????# ##???????????????????????????????? | | ???????# #????????????????????????????????? | | ???##### ################# #????????????? | | ??## + #????????????? | | ??#T # #????????????? | | ??## ### #s???????????? | | ??#! !?# #####+######### ####?s???????????? | | ??#! !?# # = #??????????s???????????? | | ??#! !?# # " "" #??????????????????????? | | ??#! !?# # "[=" +??????????????????????? | | ??###### # ?"[]" #??????????????????????? | | ???????# # ?"=[" #??????????????????????? | | ???????# # ??"] " #???????Y??????????????? | | ???????##### """" #### #???????????????? | | ???????????# @/ Y #???????????????? | | ???????????############## #???????????????? | | ????????????????????????????????????????????? | | ????????????????????????????????????????????? | | ????????????????????????????????????????????? | | ????????????????????????????????????????????? | | ????????????????????????????????????????????? | | ????????????????????????????????????????????? | | ????????????????????????????????????????????? | | ????????????????????????????????????????????? | | | | | | | | | | | | | | | | | | | | | | | | | | | | | | | +----------------------------------------------------+ Best States ------------- Heat Dissipation 45 Energy Generation 18 Energy Capacity 265 Matter Stores 500 Matter Capacity 500 Sight Range 16 Terrain Scan Density 10 Additional Mass Support 6 Armor Coverage 600 Evasion (%) 40 Recoil Reduction 4 Kinecelleration 40 Offensive Hacking 10 Relay Coupler Types 1 Relay Coupler Value 29 Item Schematics ----------------- None Robot Schematics ------------------ None Fabricated ------------ Nothing Alien Tech Used ----------------- None Achievements -------------- None Challenges ------------ None Game ------ Seed DisposableReflectiveLog Manual? 0 Play Time 00:46:52 Cumulative 753.0 hours Start 2024.02.13 @ 17:09:57 End 2024.02.15 @ 20:52:42 Sessions 5 Manual Loads 0 Difficulty Rogue Special Mode None Game No. 681 Rogue 681 Adventurer 0 Explorer 0 Win Type - Total 38 Types 14/3/11/2/0/0/5/2/1 Lore% 97 Gallery% 96 Achievement% 84 Wizard Run 0 Options --------- ASCII 0 Keyboard 0 Movement Numpad Keybinds 0 Fullscreen 1 Font 18/Smallcaps Map View 76x50 Tactical HUD 1 Map Filters NONE Filters NONE Steam 1 RUN: 6f5ff0dd-c15e-4f55-9b69-5a0b63f12392